bitfinex-derivatives/quotes_SOLF0:USTF0_20250831
["timestamp","ask_amount","ask_price","bid_price","bid_amount"]
[1756605161730,5.56,206.44,206.4,9.05732787]
[1756605161927,5.56,206.44,206.41,9.05732787]
[1756605162133,5.56,206.44,206.39,7.7]
[1756605162329,53.46,206.47,206.4,16.75818649]
[1756605162532,53.46,206.47,206.41,9.05818649]
[1756605162733,53.46,206.47,206.42,4.49029585]
[1756605162936,59.02,206.47,206.4,7.7]
[1756605163235,59.02,206.47,206.41,9.05770577]
[1756605163437,59.02,206.47,206.29,5.3484824]
[1756605163438,5.56,206.44,206.36,7.7]
[1756605163738,5.56,206.44,206.37,9.06146531]
[1756605163927,5.56,206.44,206.38,9.06146531]
[1756605164237,5.56,206.44,206.39,9.06146531]
[1756605164431,5.56,206.44,206.4,4.4919055]
[1756605164627,5.56,206.44,206.36,7.7]
[1756605164935,5.56,206.44,206.37,8.91318991]
[1756605165136,5.56,206.44,206.38,8.91318991]
[1756605165337,5.56,206.44,206.39,4.49345279]
[1756605165539,5.56,206.45,206.41,7.7]
[1756605165738,124.98,206.47,206.42,4.49226384]
[1756605165940,130.54,206.47,206.37,2.0959151]
[1756605166134,130.54,206.47,206.38,16.60863404]
[1756605166444,130.54,206.47,206.39,8.90863404]
[1756605166743,130.54,206.47,206.4,8.90863404]
[1756605166944,130.54,206.47,206.41,4.49117003]
[1756605167237,124.98,206.47,206.42,4.49117003]
[1756605167449,130.54,206.47,206.38,7.7]
[1756605167632,130.54,206.47,206.39,8.91026164]
[1756605167836,130.54,206.47,206.4,8.91026164]
[1756605168032,130.54,206.47,206.41,8.91026164]
[1756605168238,124.98,206.47,206.42,8.91150839]
[1756605168432,124.98,206.47,206.43,4.4919982]
[1756605168737,130.54,206.47,206.38,7.7]
[1756605169040,130.54,206.47,206.39,8.91289549]
[1756605169237,132.6359151,206.47,206.4,4.49334302]
[1756605169441,132.6359151,206.47,206.41,4.49334302]
[1756605169741,132.6359151,206.47,206.38,7.7]
[1756605169941,132.6359151,206.47,206.39,8.91686268]
[1756605170141,132.6359151,206.47,206.4,8.91803476]
[1756605170441,5.56,206.43,206.34,7.7]
[1756605170741,5.56,206.43,206.35,8.92016171]
[1756605170941,5.56,206.43,206.36,8.92016171]
[1756605171141,5.56,206.43,206.37,8.92016171]
[1756605171441,5.56,206.43,206.38,8.92016171]
[1756605171644,5.56,206.43,206.39,4.49697472]
[1756605171938,2.0959151,206.41,206.34,7.7]
[1756605172243,124.94,206.4,206.35,8.92283546]
[1756605172444,5.56,206.39,206.36,8.92283546]
[1756605172640,124.94,206.4,206.37,4.49828444]
[1756605172841,5.56,206.39,206.38,4.49828444]
[1756605173645,6.04,206.39,206.3,7.7]
[1756605173846,5.56,206.39,206.31,4.49894947]
[1756605174046,5.56,206.39,206.32,4.49894947]
[1756605174246,5.56,206.39,206.33,4.49894947]
[1756605174548,124.94,206.4,206.34,4.49894947]
[1756605174749,5.56,206.38,206.35,4.49894947]
[1756605174948,2.0959151,206.39,206.36,4.49894947]
[1756605175149,5.56,206.38,206.37,4.49894947]
[1756605176343,2.0959151,206.39,206.37,4.49894947]
[1756605176344,5.56,206.44,206.37,4.49894947]
[1756605176547,7.6559151,206.41,206.38,4.49763874]
[1756605176749,7.6559151,206.41,206.33,7.7]
[1756605176949,7.6559151,206.41,206.34,4.4975556]
[1756605177248,7.6559151,206.41,206.33,7.7]
[1756605177249,7.6559151,206.41,206.35,4.4975556]
[1756605177449,5.56,206.4,206.36,4.4975556]
[1756605177646,2.0959151,206.41,206.37,4.4975556]
[1756605177846,7.6559151,206.41,206.33,7.7]
[1756605178051,7.6559151,206.41,206.34,4.49797136]
[1756605178249,7.6559151,206.41,206.35,4.49797136]
[1756605178448,5.56,206.4,206.36,4.49797136]
[1756605178648,5.56,206.4,206.37,4.49797136]
[1756605178846,5.56,206.4,206.33,7.7]
[1756605179143,5.56,206.4,206.34,4.49692587]
[1756605179348,5.56,206.4,206.35,4.4967718]
[1756605179642,5.56,206.4,206.36,4.4967718]
[1756605179850,2.0959151,206.41,206.37,4.4967718]
[1756605180047,5.56,206.4,206.31,7.7]
[1756605180243,2.0959151,206.38,206.32,4.49661039]
[1756605180445,5.56,206.34,206.33,4.49661039]
[1756605180647,130.48,206.34,206.27,7.7]
[1756605180848,130.48,206.34,206.28,4.4991047]
[1756605181044,5.56,206.33,206.29,4.4991047]
[1756605181249,5.56,206.33,206.23,4.0113618]
[1756605181250,5.56,206.31,206.3,4.4991047]
[1756605181447,5.56,206.31,206.23,7.7]
[1756605181652,124.9,206.3,206.24,4.45317835]
[1756605181949,124.9,206.3,206.26,7.7]
[1756605182152,124.9,206.3,206.27,12.15317835]
[1756605182341,124.9,206.3,206.28,4.45317835]
[1756605182542,124.9,206.3,206.27,7.7]
[1756605182745,124.9,206.3,206.28,4.45111626]
[1756605182942,124.9,206.3,206.29,4.45111626]
[1756605183444,5.56,206.31,206.29,4.45111626]
[1756605183643,55.0,206.3,206.21,7.7]
[1756605183846,55.0,206.3,206.23,7.7]
[1756605184047,55.0,206.3,206.24,4.44927289]
[1756605184246,55.0,206.3,206.26,7.7]
[1756605184448,55.0,206.3,206.25,4.44927289]
[1756605184449,55.0,206.3,206.27,12.14927289]
[1756605184653,55.0,206.3,206.28,4.44927289]
[1756605184853,55.0,206.3,206.29,4.44927289]
[1756605187554,61.04,206.3,206.23,7.38]
[1756605187759,5.56,206.27,206.24,4.4732892]
[1756605188059,5.56,206.27,206.25,4.4732892]
[1756605188357,5.56,206.27,206.23,7.38]
[1756605188557,5.56,206.27,206.24,4.47047812]
[1756605188757,5.56,206.27,206.25,4.47047651]
[1756605188957,5.56,206.27,206.23,7.38]
[1756605189149,5.56,206.27,206.24,4.47050633]
[1756605189349,5.56,206.27,206.25,4.47050633]
[1756605189550,63.74,206.27,206.26,11.84867857]
[1756605190365,70.62,206.3,206.27,7.38]
[1756605190566,70.62,206.3,206.28,4.46867857]
[1756605190769,70.62,206.3,206.27,7.38]
[1756605191064,70.62,206.3,206.28,4.46634612]
[1756605191269,70.62,206.3,206.27,7.38]
[1756605191457,70.62,206.3,206.18,4.0113618]
[1756605191458,5.56,206.29,206.23,7.38]
[1756605191763,76.18,206.3,206.24,4.46853796]
[1756605191963,76.18,206.3,206.23,7.38]
[1756605192166,76.18,206.3,206.24,4.46476458]
[1756605192466,76.18,206.3,206.23,7.38]
[1756605192667,76.18,206.3,206.24,4.46385616]
[1756605192867,76.18,206.3,206.25,11.84385616]
[1756605193065,76.18,206.3,206.26,4.46385616]
[1756605193266,76.18,206.3,206.25,7.38]
[1756605193466,76.18,206.3,206.26,4.46177986]
[1756605193667,76.18,206.3,206.25,7.38]
[1756605193969,76.18,206.3,206.18,2.0959151]
[1756605193970,85.5,206.3,206.26,11.84151136]
[1756605194169,85.5,206.3,206.26,7.38]
[1756605195867,2.0959151,206.35,206.27,11.84141495]
[1756605196170,2.0959151,206.35,206.14,2.0959151]
[1756605196171,53.36,206.36,206.29,7.38]
[1756605196372,111.9159151,206.37,206.3,4.46141495]
[1756605196567,2.0959151,206.43,206.32,7.38]
[1756605196768,2.0959151,206.43,206.33,4.46141495]
[1756605196968,2.0959151,206.4,206.34,4.46141495]
[1756605197169,2.0959151,206.4,206.35,4.46141495]
[1756605197170,5.56,206.39,206.35,4.46141495]
[1756605197464,5.56,206.39,206.31,7.38]
[1756605197670,5.56,206.39,206.32,4.45832978]
[1756605197866,331.2,206.45,206.33,4.45832978]
[1756605198060,331.2,206.45,206.2,13.4]
[1756605198061,2.0959151,206.43,206.34,11.83779728]
[1756605198263,2.0959151,206.43,206.35,4.45779728]
[1756605198470,2.0959151,206.43,206.36,4.45779728]
[1756605198672,2.0959151,206.43,206.34,7.38]
[1756605198867,2.0959151,206.43,206.35,4.45521368]
[1756605199171,2.0959151,206.43,206.34,7.38]
[1756605199372,2.0959151,206.43,206.35,4.45528352]
[1756605199574,2.0959151,206.43,206.34,7.38]
[1756605199773,2.0959151,206.43,206.35,4.45528352]
[1756605199972,2.0959151,206.43,206.34,7.38]
[1756605200167,2.0959151,206.43,206.35,4.45527964]
[1756605200471,325.64,206.45,206.37,7.38]
[1756605200669,450.48,206.45,206.39,7.38]
[1756605200869,124.84,206.45,206.41,7.38]
[1756605201066,124.84,206.45,206.42,4.45527964]
[1756605201267,5.56,206.49,206.43,7.38]
[1756605201475,132.4959151,206.48,206.43,7.38]
[1756605201875,5.56,206.47,206.36,7.38]
[1756605202174,5.56,206.47,206.38,7.38]
[1756605202375,5.56,206.47,206.39,4.44921962]
[1756605202572,5.56,206.47,206.4,4.44921962]
[1756605202775,5.56,206.47,206.38,7.38]
[1756605203076,5.56,206.47,206.39,4.44695537]
[1756605203375,5.56,206.47,206.4,4.44695537]
[1756605203577,5.56,206.47,206.38,7.38]
[1756605203776,5.56,206.47,206.39,4.44707201]
[1756605203976,5.56,206.47,206.38,7.38]
[1756605204174,2.0959151,206.45,206.39,4.44707201]
[1756605204375,2.0959151,206.45,206.38,7.38]
[1756605205775,7.6559151,206.47,206.38,7.38]
[1756605210876,2.0959151,206.44,206.38,7.38]
[1756605211180,7.6459151,206.44,206.38,7.38]
[1756605213682,7.6459151,206.44,206.33,7.38]
[1756605213883,7.6459151,206.44,206.34,4.45114238]
[1756605214082,7.6459151,206.44,206.35,4.45114238]
[1756605214278,7.6459151,206.44,206.36,4.45114238]
[1756605214584,7.6459151,206.44,206.33,7.38]
[1756605214781,7.6459151,206.44,206.34,4.44601041]
[1756605214983,7.6459151,206.44,206.35,4.44601041]
[1756605215183,7.6459151,206.44,206.36,4.44601041]
[1756605215384,7.6459151,206.44,206.33,7.38]
[1756605215585,7.6459151,206.44,206.34,4.44620955]
[1756605215781,7.6459151,206.44,206.35,4.44620955]
[1756605215987,5.55,206.4,206.33,7.38]
[1756605216176,113.67,206.4,206.34,4.44688699]
[1756605216381,113.67,206.4,206.36,7.38]
[1756605216686,113.67,206.4,206.29,7.38]
[1756605216883,113.67,206.4,206.28,2.0959151]
[1756605216884,113.67,206.4,206.31,7.38]
[1756605217083,113.67,206.4,206.32,4.44754894]
[1756605217381,113.67,206.4,206.28,2.0959151]
[1756605217382,113.67,206.4,206.34,7.83]
[1756605217586,113.67,206.4,206.36,7.83]
[1756605218887,124.74,206.39,206.29,7.83]
[1756605219187,124.74,206.39,206.31,7.83]
[1756605219380,124.74,206.4,206.32,4.44747895]
[1756605219585,124.74,206.4,206.33,4.44747895]
[1756605219786,124.74,206.4,206.34,4.44747895]
[1756605219988,130.3,206.4,206.35,12.27747895]
[1756605220185,5.56,206.39,206.35,7.83]
[1756605224589,5.56,206.45,206.32,7.83]
[1756605224791,124.72,206.44,206.35,7.83]
[1756605224989,124.72,206.44,206.36,4.44619539]
[1756605225192,126.8159151,206.44,206.37,4.44619539]
[1756605225388,126.8159151,206.44,206.35,7.83]
[1756605225389,126.8159151,206.44,206.38,4.44608554]
[1756605225587,5.56,206.43,206.35,7.83]
[1756605225792,5.56,206.43,206.36,4.44807692]
[1756605226095,5.56,206.43,206.37,4.44807692]
[1756605226395,5.56,206.43,206.35,7.83]
[1756605226595,5.56,206.43,206.36,4.44834618]
[1756605226790,5.56,206.43,206.35,7.83]
[1756605226791,124.7,206.42,206.37,4.44834618]
[1756605226995,5.56,206.41,206.37,7.83]
[1756605228092,5.56,206.41,206.31,7.83]
[1756605228298,7.6559151,206.41,206.32,4.44957026]
[1756605228496,7.6559151,206.41,206.33,4.44957026]
[1756605228798,7.6559151,206.41,206.34,4.44957026]
[1756605228989,7.6559151,206.41,206.31,7.83]
[1756605229190,7.6559151,206.41,206.33,7.83]
[1756605229394,7.6559151,206.41,206.34,4.45005917]
[1756605229600,7.6559151,206.41,206.33,7.83]
[1756605229798,7.6559151,206.41,206.34,4.4507099]
[1756605229989,7.6559151,206.41,206.33,7.83]
[1756605230192,7.6559151,206.41,206.34,4.45074107]
[1756605230391,5.56,206.41,206.35,4.45140368]
[1756605230698,5.56,206.41,206.33,7.83]
[1756605230899,5.56,206.41,206.34,4.45140452]
[1756605231100,5.56,206.41,206.35,4.45211539]
[1756605231405,5.56,206.41,206.33,7.83]
[1756605231698,5.56,206.41,206.34,4.45208562]
[1756605231901,5.56,206.41,206.35,4.45208562]
[1756605232097,5.56,206.41,206.33,7.83]
[1756605232397,5.56,206.41,206.34,4.45306934]
[1756605232599,5.56,206.41,206.33,7.83]
[1756605232896,5.56,206.41,206.34,4.45306901]
[1756605233200,5.56,206.41,206.35,4.45489519]
[1756605233399,5.56,206.41,206.33,7.83]
[1756605233601,5.56,206.41,206.34,4.45463355]
[1756605233793,5.56,206.41,206.35,4.45463355]
[1756605233996,5.56,206.41,206.33,7.83]
[1756605234193,5.56,206.41,206.34,4.45422799]
[1756605234399,5.56,206.41,206.35,4.45422799]
[1756605234594,124.7,206.42,206.36,4.4545892]
[1756605234792,124.7,206.42,206.38,7.83]
[1756605235300,130.26,206.42,206.39,4.45566189]
[1756605235500,130.26,206.42,206.38,7.83]
[1756605235701,5.56,206.41,206.39,4.45566189]
[1756605235900,5.56,206.41,206.35,7.83]
[1756605236104,124.7,206.42,206.37,7.83]
[1756605236398,124.7,206.42,206.38,4.45588354]
[1756605236605,124.7,206.42,206.39,4.45588354]
[1756605236904,124.7,206.42,206.4,12.28588354]
[1756605237099,124.7,206.42,206.41,4.45588354]
[1756605240503,130.26,206.42,206.41,4.45588354]
[1756605240711,130.26,206.42,206.33,7.83]
[1756605240902,130.26,206.42,206.34,4.46868161]
[1756605241102,130.26,206.42,206.33,7.83]
[1756605241298,130.26,206.42,206.34,4.4696236]
[1756605241600,130.26,206.42,206.35,4.4696236]
[1756605241806,130.26,206.42,206.36,4.4696236]
[1756605242006,130.26,206.42,206.33,7.83]
[1756605242007,5.56,206.41,206.37,4.4696236]
[1756605242206,124.7,206.42,206.38,4.4696236]
[1756605242407,124.7,206.42,206.39,4.4696236]
[1756605242605,130.26,206.42,206.33,7.83]
[1756605242909,130.26,206.42,206.34,4.46634734]
[1756605243105,130.26,206.42,206.35,4.46634734]
[1756605243306,130.26,206.42,206.36,4.46634734]
[1756605243506,5.56,206.41,206.37,4.46634734]
[1756605243710,5.56,206.41,206.38,4.46634734]
[1756605244005,5.56,206.41,206.39,4.46634734]
[1756605244210,5.56,206.41,206.34,7.83]
[1756605247506,2.0959151,206.4,206.34,7.83]
[1756605249412,5.56,206.41,206.34,7.83]
[1756605249613,124.56,206.43,206.34,7.83]
[1756605251011,7.6559151,206.42,206.34,7.83]
[1756605252811,124.54,206.41,206.34,7.83]
[1756605264113,5.56,206.4,206.33,4.00733595]
[1756605264320,5.56,206.38,206.31,7.65]
[1756605265626,5.56,206.43,206.34,7.65]
[1756605272620,126.5159151,206.44,206.34,7.65]
[1756605273123,5.56,206.43,206.34,7.65]
[1756605273522,5.56,206.4,206.34,7.65]
[1756605280529,5.56,206.42,206.34,7.65]
[1756605282935,5.56,206.41,206.34,7.65]
[1756605283331,2.0959151,206.42,206.31,11.21733595]
[1756605283532,5.56,206.41,206.31,11.21733595]
[1756605284532,5.56,206.41,206.31,7.21]
[1756605286836,2.0959151,206.42,206.31,7.21]
[1756605287036,51.68,206.43,206.31,7.21]
[1756605287037,2.0959151,206.39,206.31,7.21]
[1756605287344,5.56,206.38,206.31,7.21]
[1756605289641,57.10688302,206.43,206.28,7.21]
[1756605289642,5.56,206.35,206.28,7.21]
[1756605289837,102.3,206.35,206.28,7.21]
[1756605290342,5.56,206.34,206.28,7.21]
[1756605294242,5.56,206.34,206.23,4.01419709]
[1756605294447,5.56,206.34,206.24,7.21]
[1756605294849,2.0959151,206.33,206.24,7.21]
[1756605297957,7.6559151,206.34,206.24,7.21]
[1756605298253,5.56,206.33,206.24,7.21]
[1756605299454,7.6559151,206.33,206.24,7.21]
[1756605300459,5.56,206.32,206.24,7.21]
[1756605300849,2.0959151,206.3,206.24,7.21]
[1756605301052,5.56,206.29,206.24,7.21]
[1756605301253,2.0959151,206.3,206.24,7.21]
[1756605302059,7.6559151,206.3,206.24,7.21]
[1756605304057,5.56,206.28,206.24,7.21]
[1756605306059,5.56,206.28,206.19,7.21]
[1756605307058,2.0959151,206.27,206.19,7.21]
[1756605307262,5.56,206.26,206.19,7.21]
[1756605309764,2.0959151,206.21,206.13,7.4]
[1756605309959,16.6559151,206.36,206.08,5.3484824]
[1756605309960,2.0959151,206.18,206.08,7.4]
[1756605311462,126.1559151,206.18,206.08,7.4]
[1756605314765,2.0959151,206.15,206.08,7.4]
[1756605315670,5.57,206.16,206.08,7.4]
[1756605315971,51.75,206.16,206.08,7.4]
[1756605316157,5.57,206.24,206.09,2.0959151]
[1756605316362,5.57,206.24,206.13,7.4]
[1756605316363,129.61,206.24,206.13,7.4]
[1756605318464,131.7059151,206.24,206.13,7.4]
[1756605318665,129.61,206.24,206.13,7.4]
[1756605318866,124.02,206.23,206.13,7.4]
[1756605321469,5.57,206.22,206.13,7.4]
[1756605325576,325.84,206.25,206.13,7.4]
[1756605325776,123.96,206.24,206.16,7.4]
[1756605326370,325.84,206.25,206.16,7.4]
[1756605326572,325.84,206.25,206.19,7.4]
[1756605327476,5.57,206.24,206.16,9.4959151]
[1756605331876,325.84,206.25,206.17,7.4]
[1756605332077,123.9,206.27,206.2,7.4]
[1756605334183,5.57,206.26,206.2,7.4]
[1756605334783,5.57,206.26,206.16,2.0959151]
[1756605334784,5.57,206.26,206.15,7.4]
[1756605336886,123.9,206.27,206.15,7.4]
[1756605337086,5.57,206.26,206.15,7.4]
[1756605337282,5.57,206.26,206.18,7.4]
[1756605342890,5.59,206.26,206.14,9.3559151]
[1756605343286,5.59,206.26,206.15,7.26]
[1756605344892,5.59,206.26,206.15,9.3559151]
[1756605345092,5.59,206.26,206.16,7.26]
[1756605352805,125.9959151,206.27,206.16,7.26]
[1756605353002,5.59,206.26,206.16,7.26]
[1756605354801,125.9959151,206.27,206.16,7.26]
[1756605355000,5.59,206.26,206.16,7.26]
[1756605356107,125.9959151,206.27,206.16,7.26]
[1756605356404,5.59,206.26,206.16,7.26]
[1756605356599,125.9959151,206.27,206.16,7.26]
[1756605356998,5.59,206.26,206.16,7.26]
[1756605357199,125.9959151,206.27,206.16,7.26]
[1756605358306,5.59,206.26,206.16,7.26]
[1756605360304,5.59,206.26,206.16,11.24703882]
[1756605361807,5.59,206.26,206.17,3.98703882]
[1756605362005,125.9959151,206.27,206.16,11.24703882]
[1756605362200,5.59,206.26,206.16,7.26]
[1756605362600,125.9959151,206.27,206.16,7.26]
[1756605362904,5.59,206.26,206.16,7.26]
[1756605363107,5.59,206.26,206.15,3.98703882]
[1756605364010,5.59,206.26,206.14,3.98703882]
[1756605364409,123.9,206.27,206.15,7.26]
[1756605364600,123.9,206.27,206.15,11.24703882]
[1756605364808,5.59,206.25,206.15,11.24703882]
[1756605365303,2.0959151,206.26,206.15,11.24703882]
[1756605365714,5.59,206.25,206.15,11.24703882]
[1756605365906,2.0959151,206.26,206.15,11.24703882]
[1756605366313,5.59,206.25,206.15,11.24703882]
[1756605366814,5.59,206.25,206.15,7.26]
[1756605367016,2.0959151,206.23,206.15,7.26]
[1756605367213,5.59,206.22,206.15,7.26]
[1756605367411,2.0959151,206.23,206.15,7.26]
[1756605367716,5.57,206.22,206.15,7.26]
[1756605368215,2.0959151,206.23,206.15,7.26]
[1756605368513,5.57,206.19,206.12,11.72703882]
[1756605368711,123.54,206.18,206.12,7.74]
[1756605368912,5.57,206.19,206.12,11.72703882]
[1756605369111,129.11,206.19,206.12,11.72703882]
[1756605369311,129.11,206.19,206.12,11.76230616]
[1756605369609,129.11,206.19,206.12,7.74]
[1756605371809,5.57,206.29,206.17,7.74]
[1756605372009,5.57,206.29,206.19,7.74]
[1756605372717,122.4359151,206.3,206.19,7.74]
[1756605372916,5.57,206.29,206.19,7.74]
[1756605378517,2.0959151,206.27,206.19,7.74]
[1756605378920,5.57,206.36,206.23,2.0959151]
[1756605379218,5.57,206.41,206.3,2.0959151]
[1756605379418,49.46,206.4,206.32,7.74]
[1756605379724,49.46,206.4,206.33,4.55242079]
[1756605379916,49.46,206.4,206.34,4.55242079]
[1756605380117,5.57,206.39,206.35,4.55242079]
[1756605380318,5.57,206.39,206.36,4.55242079]
[1756605380621,5.57,206.39,206.37,4.55242079]
[1756605380821,5.57,206.39,206.32,7.74]
[1756605381021,5.57,206.39,206.33,4.54664672]
[1756605381221,5.57,206.39,206.34,12.28664672]
[1756605381424,5.57,206.39,206.35,4.54664672]
[1756605381621,5.57,206.39,206.36,4.54664672]
[1756605381823,5.57,206.39,206.34,7.74]
[1756605382021,5.57,206.39,206.35,4.54386126]
[1756605382220,5.57,206.39,206.36,4.54386126]
[1756605382520,5.57,206.39,206.34,7.74]
[1756605382722,5.57,206.39,206.35,4.54105871]
[1756605382923,49.46,206.4,206.36,4.54040394]
[1756605383123,49.46,206.4,206.37,4.54040394]
[1756605383319,123.38,206.39,206.34,7.74]
[1756605383522,123.38,206.39,206.36,7.74]
[1756605383821,123.38,206.39,206.37,4.5373637]
[1756605384019,128.92,206.39,206.36,7.74]
[1756605385322,123.36,206.38,206.36,7.74]
[1756605385820,123.36,206.38,206.31,7.74]
[1756605386221,5.54,206.37,206.31,7.74]
[1756605386723,5.54,206.35,206.25,7.74]
[1756605387028,5.54,206.32,206.26,8.97173688]
[1756605387227,2.0959151,206.36,206.25,7.74]
[1756605387228,5.54,206.29,206.25,7.74]
[1756605387429,2.0959151,206.3,206.26,12.27596933]
[1756605387625,2.0959151,206.3,206.26,7.74]
[1756605387819,2.0959151,206.3,206.19,7.74]
[1756605388028,2.0959151,206.3,206.21,7.74]
[1756605388329,2.0959151,206.3,206.23,7.74]
[1756605388631,2.0959151,206.3,206.24,8.97606873]
[1756605388824,7.6359151,206.3,206.26,7.74]
[1756605389024,7.6359151,206.3,206.27,4.53599296]
[1756605389225,7.6359151,206.3,206.26,7.74]
[1756605389426,7.6359151,206.3,206.27,4.53632914]
[1756605389621,2.0959151,206.3,206.19,7.74]
[1756605389829,128.88,206.31,206.21,7.74]
[1756605390030,130.9759151,206.31,206.23,7.74]
[1756605390326,130.9759151,206.31,206.24,8.97728295]
[1756605390529,128.84,206.3,206.25,12.27661497]
[1756605390728,128.84,206.3,206.26,4.53661497]
[1756605390930,128.84,206.3,206.25,7.74]
[1756605391128,128.84,206.3,206.26,4.53777328]
[1756605391428,5.54,206.29,206.25,7.74]
[1756605391730,5.54,206.29,206.26,4.53820697]
[1756605391930,5.54,206.29,206.25,7.74]
[1756605392225,5.54,206.29,206.26,4.53761663]
[1756605392431,128.84,206.3,206.22,7.74]
[1756605392730,128.84,206.3,206.23,4.53763503]
[1756605392928,128.84,206.3,206.24,4.53763503]
[1756605393130,5.54,206.29,206.25,4.53763503]
[1756605393330,5.54,206.29,206.26,4.53763503]
[1756605393523,5.54,206.29,206.22,7.74]
[1756605393724,5.54,206.29,206.23,4.53766046]
[1756605393929,5.54,206.29,206.24,12.27766046]
[1756605394130,5.54,206.29,206.25,4.53766046]
[1756605394330,5.54,206.29,206.26,4.53766046]
[1756605394531,5.54,206.29,206.22,7.74]
[1756605394728,5.54,206.29,206.23,4.58080069]
[1756605395027,5.54,206.29,206.24,12.32080069]
[1756605395226,123.3,206.3,206.25,4.58080069]
[1756605395426,5.54,206.29,206.26,4.58080069]
[1756605395626,128.84,206.3,206.24,7.74]
[1756605395825,5.54,206.29,206.25,4.5806475]
[1756605396022,123.3,206.3,206.26,4.5806475]
[1756605396223,128.84,206.3,206.24,7.74]
[1756605396429,5.54,206.27,206.25,4.5809239]
[1756605396621,5.54,206.27,206.21,7.74]
[1756605396830,7.6359151,206.28,206.22,8.96544088]
[1756605397132,2.0959151,206.28,206.23,4.58190347]
[1756605397336,5.54,206.27,206.24,4.58190347]
[1756605397530,5.54,206.27,206.25,4.58190347]
[1756605397729,5.54,206.27,206.2,7.74]
[1756605397930,5.54,206.27,206.21,8.96897498]
[1756605398130,5.54,206.27,206.22,16.52897498]
[1756605398434,5.54,206.27,206.23,4.58370861]
[1756605398734,5.54,206.27,206.24,4.58370861]
[1756605398931,5.54,206.27,206.25,4.58370861]
[1756605399134,5.54,206.27,206.22,7.56]
[1756605399433,5.54,206.27,206.23,4.58373771]
[1756605399635,5.54,206.27,206.24,4.58373771]
[1756605399934,5.54,206.27,206.25,4.58373771]
[1756605400136,5.54,206.27,206.23,7.56]
[1756605400435,5.54,206.27,206.24,4.58391028]
[1756605400733,5.54,206.27,206.25,4.58391028]
[1756605400936,2.0959151,206.28,206.17,7.56]
[1756605400937,7.6659151,206.28,206.17,7.56]
[1756605401132,7.6659151,206.28,206.19,7.56]
[1756605401427,7.6659151,206.28,206.2,8.97027089]
[1756605401624,7.6659151,206.28,206.21,8.97027089]
[1756605401829,7.6659151,206.28,206.22,8.97027089]
[1756605402024,2.0959151,206.28,206.23,4.58436612]
[1756605402228,2.0959151,206.28,206.21,7.56]
[1756605402229,5.57,206.27,206.24,4.58436612]
[1756605402426,5.57,206.27,206.25,4.58436612]
[1756605402637,5.57,206.27,206.21,7.56]
[1756605402837,5.57,206.27,206.23,7.56]
[1756605403135,2.0959151,206.28,206.24,4.58453428]
[1756605403330,5.57,206.27,206.25,4.58453428]
[1756605403533,5.57,206.27,206.23,7.56]
[1756605403834,5.57,206.27,206.24,4.58472214]
[1756605404029,5.57,206.27,206.25,4.58472214]
[1756605404229,5.57,206.27,206.23,7.56]
[1756605404425,5.57,206.27,206.24,4.58491328]